[Event "Western Asian Juniors Chess-ch 2023"]
[Site "Colombo"]
[Date "2023.12.02"]
[Round "5.1"]
[White "De Silva, L M S T"]
[Black "Harshavardhan G B"]
[Result "1/2-1/2"]
[ECO "A27"]
[WhiteElo "2394"]
[BlackElo "2390"]
[Annotator "RC"]
[PlyCount "159"]
[EventDate "2023.11.30"]
[EventCountry "SRI"]
[SourceTitle "playchess.com"]
[Source "ChessBase"]
[SourceQuality "1"]
[TimeControl "5400+30"]

1. c4 {[%emt 0:00:06]} e5 {[%emt 0:02:43]} 2. Nc3 {[%emt 0:00:12]} Nc6 {[%emt 0:00:47]} 3. Nf3 {[%emt 0:00:24]} f5 {[%emt 0:00:15]} 4. g3 {[%emt 0:01:07]} Nf6 {[%emt 0:00:10]} 5. d4 {[%emt 0:01:21]} e4 {[%emt 0:00:07]} 6. Nh4 {[%emt 0:00:08]} d5 {[%emt 0:00:06]} 7. Bg5 {[%emt 0:01:50]} Bb4 {[%emt 0:00:23]} 8. e3 {[%emt 0:04:02]} O-O {[%emt 0:16:35]} 9. Qb3 {[%emt 0:19:08]} Be6 {[%emt 0:04:52]} 10. O-O-O {[%emt 0:07:10]} Bxc3 {[%emt 0:08:07]} 11. Qxc3 {[%emt 0:00:38]} Ne7 {[%emt 0:02:30]} 12. Ng2 {[%emt 0:10:25]} dxc4 {[%emt 0:10:37]} 13. Nf4 {[%emt 0:33:53]} Ned5 {[%emt 0:05:12]} 14. Nxe6 {[%emt 0:00:23]} Nxc3 {[%emt 0:00:39]} 15. Nxd8 {[%emt 0:00:07]} Nxd1 {[%emt 0:00:07]} 16. Bxc4+ {[%emt 0:00:13]} Kh8 {[%emt 0:00:06]} 17. Nf7+ {[%emt 0:06:31]} Rxf7 {[%emt 0:01:14]} 18. Bxf7 {[%emt 0:00:02]} Nxf2 {[%emt 0:00:09]} 19. Rf1 {[%emt 0:00:09]} N6g4 {[%emt 0:06:21]} 20. Be6 {[%emt 0:02:14]} h6 {[%emt 0:02:30]} 21. Bf4 {[%emt 0:01:57]} Nd3+ {[%emt 0:03:10]} 22. Kd2 {[%emt 0:00:26]} Nxh2 {[%emt 0:01:20]} 23. Rh1 {[%emt 0:00:16]} Nf3+ {[%emt 0:00:15]} 24. Ke2 {[%emt 0:00:10]} Nxf4+ {[%emt 0:00:14]} 25. gxf4 {[%emt 0:00:04]} Rf8 {[%emt 0:00:11]} 26. d5 {[%emt 0:00:58]} g5 {[%emt 0:07:41]} 27. Rc1 {[%emt 0:03:56]} gxf4 {[%emt 0:02:20]} 28. Rxc7 {[%emt 0:00:12]} fxe3 {[%emt 0:00:09]} 29. Kxe3 {[%emt 0:00:29]} f4+ {[%emt 0:00:36]} 30. Kxe4 {[%emt 0:00:42]} Ng5+ {[%emt 0:00:06]} 31. Kd3 {[%emt 0:03:04]} f3 {[%emt 0:00:25]} 32. Rc1 {[%emt 0:00:44]} Kg7 {[%emt 0:05:56]} 33. Bg4 {[%emt 0:01:22]} Kf6 {[%emt 0:04:01]} 34. d6 {[%emt 0:00:48]} f2 {[%emt 0:03:00]} 35. Ke3 {[%emt 0:01:12]} Ke5 {[%emt 0:02:11]} 36. d7 {[%emt 0:00:01]} Ne6 {[%emt 0:00:27]} 37. Rf1 {[%emt 0:00:42]} Kd6 {[%emt 0:04:27]} 38. Bxe6 {[%emt 0:00:33]} Kxe6 {[%emt 0:00:07]} 39. Rxf2 {[%emt 0:02:21]} Rh8 {[%emt 0:00:11]} 40. Rd2 {[%emt 0:00:00]} Ke7 {[%emt 0:00:09]} 41. Kf4 {[%emt 0:00:00]} Kd8 {[%emt 0:00:17]} 42. Kg3 {[%emt 0:00:43]} Rh7 {[%emt 0:01:30]} 43. Rd6 {[%emt 0:00:13]} Rg7+ {[%emt 0:00:23]} 44. Kf3 {[%emt 0:00:42]} Rh7 {[%emt 0:02:03]} 45. Kg3 {[%emt 0:00:19]} b6 {[%emt 0:00:57]} 46. Kf4 {[%emt 0:01:01]} h5 {[%emt 0:01:23]} 47. Kg3 {[%emt 0:00:31]} Rxd7 {[%emt 0:00:21]} 48. Rh6 {[%emt 0:00:17]} Rd2 {[%emt 0:00:12]} 49. b4 {[%emt 0:00:40]} Rxa2 {[%emt 0:04:01]} 50. b5 {[%emt 0:00:17]} Rc2 {[%emt 0:01:09]} 51. Rxh5 {[%emt 0:00:13]} Rc5 {[%emt 0:00:22]} 52. Rh7 {[%emt 0:00:18]} Rxb5 {[%emt 0:00:18]} 53. Rxa7 {[%emt 0:00:01]} Rd5 {[%emt 0:00:26]} 54. Rb7 {[%emt 0:01:04]} Rd6 {[%emt 0:00:46]} 55. Kf3 {[%emt 0:00:36]} Kc8 {[%emt 0:00:05]} 56. Rh7 {[%emt 0:00:28]} Rd7 {[%emt 0:00:07]} 57. Rh6 {[%emt 0:00:44]} Kb7 {[%emt 0:00:07]} 58. Ke3 {[%emt 0:00:27]} Ka6 {[%emt 0:00:13]} 59. Rh1 {[%emt 0:00:41]} b5 {[%emt 0:00:06]} 60. Ra1+ {[%emt 0:00:09]} Kb6 {[%emt 0:00:07]} 61. Rb1 {[%emt 0:00:14]} Rd8 {[%emt 0:00:06]} 62. Ke4 {[%emt 0:00:40]} Rd2 {[%emt 0:00:07]} 63. Ke3 {[%emt 0:00:06]} Rd5 {[%emt 0:00:24]} 64. Ke4 {[%emt 0:00:17]} Kc6 {[%emt 0:00:10]} 65. Rc1+ {[%emt 0:00:38]} Rc5 {[%emt 0:01:08]} 66. Rb1 {[%emt 0:00:35]} Rc3 {[%emt 0:00:22]} 67. Kd4 {[%emt 0:00:19]} Ra3 {[%emt 0:00:05]} 68. Rc1+ {[%emt 0:00:34]} Kb6 {[%emt 0:00:04]} 69. Rc3 {[%emt 0:00:15]} Ra2 {[%emt 0:00:05]} 70. Rc8 {[%emt 0:00:39]} Kb7 {[%emt 0:00:04]} 71. Rc5 {[%emt 0:00:13]} Kb6 {[%emt 0:00:06]} 72. Rc8 {[%emt 0:00:03]} Ra3 {[%emt 0:00:06]} 73. Rc3 {[%emt 0:00:22]} Ra1 {[%emt 0:00:05]} 74. Kd3 {[%emt 0:00:37]} b4 {[%emt 0:00:07]} 75. Rb3 {[%emt 0:01:30]} Ka5 {[%emt 0:00:07]} 76. Kc2 {[%emt 0:00:09]} Ka4 {[%emt 0:00:03]} 77. Rh3 {[%emt 0:00:39]} Ra3 {[%emt 0:00:05]} 78. Rh8 {[%emt 0:00:37]} Ra2+ {[%emt 0:00:03]} 79. Kb1 {[%emt 0:00:18]} Rf2 {[%emt 0:00:03]} 80. Rh3 {[%emt 0:00:09]} 1/2-1/2

[Event "Western Asian Juniors Chess-ch 2023"]
[Site "Colombo"]
[Date "2023.12.02"]
[Round "5.2"]
[White "Hommadov, Amanmuhammet"]
[Black "Liyanage, Ranindu Dilshan"]
[Result "1-0"]
[ECO "C07"]
[WhiteElo "2055"]
[BlackElo "2400"]
[Annotator "TA"]
[PlyCount "89"]
[EventDate "2023.11.30"]
[EventCountry "SRI"]
[SourceTitle "playchess.com"]
[Source "ChessBase"]
[SourceQuality "1"]
[TimeControl "5400+30"]

{[%evp 10,89,12,12,20,13,18,14,19,29,25,8,17,23,22,0,8,0,0,0,13,11,24,24,38,29,36,-27,0,-5,0,-100,-95,-195,-189,-201,-210,-207,-199,-200,-199,-188,-175,-177,244,245,441,441,437,435,435,435,435,435,402,425,493,487,636,627,751,742,975,902,928,915,1174,1097,1065,1041,1272,752,743,728,6383,691,29982,29983,29982,1323,29959,6510]} 1. e4 {[%emt 0:00:02]} e6 {[%emt 0:05:54]} 2. d4 {[%emt 0:01:14]} d5 {[%emt 0:00:12]} 3. Nd2 {[%emt 0:01:22]} c5 {[%emt 0:01:26]} 4. exd5 {[%emt 0:00:08]} Qxd5 {[%emt 0:00:26]} 5. Ngf3 {[%emt 0:00:20]} cxd4 {[%emt 0:00:40]} 6. Bc4 {[%emt 0:00:09]} Qd7 {[%emt 0:00:34] C07: French Tarrasch: 3...c5, 4 Ngf3 and 4 exd5 Qxd5.} 7. O-O {[%emt 0:00:14]} Nc6 {[%emt 0:01:00]} 8. Nb3 {[%emt 0:00:11][%cal Rb3d4]} a6 {[%emt 0:00:11] The position is equal.} 9. Nbxd4 {[%emt 0:00:10]} Nxd4 {[%emt 0:00:08]} 10. Nxd4 {[%emt 0:00:03]} Qc7 {[%emt 0:00:21] Dodges Bf4} 11. Bb3 {[%emt 0:00:15] 11.Bd3 is the hot move.} (11. Qe2 {seems wilder.} Bd6 12. Nf5 Bxh2+ 13. Kh1) 11... Bd6 {[%emt 0:00:48]} 12. h3 {[%emt 0:02:16] 12.Qh5 is vanishing.} Ne7 {[%emt 0:00:37][%cal Bg8e7,Be7g6,Bg6f4][%mdl 32]} 13. Re1 {[%emt 0:07:25]} O-O {[%emt 0:04:30]} 14. c3 {[%emt 0:01:06]} Bd7 {[%emt 0:12:21]} 15. Qh5 {[%emt 0:02:26]} Ng6 {[%emt 0:09:05]} 16. Bc2 {[%emt 0:05:43] [#]} Bh2+ $146 {[%emt 0:04:13]} ({Predecessor:} 16... Qc5 17. Qxc5 Bxc5 18. Nb3 Ba7 19. Be4 Rab8 20. Be3 Bxe3 21. Rxe3 Rfc8 22. Rd1 Bc6 23. Bxc6 Rxc6 {½-½ Gomez Garrido,C (2515)-Matsenko,S (2546) Carlos Torre Memorial op 29th 2017 (8)}) 17. Kh1 {[%emt 0:00:08] And now g3 would win.} Bf4 {[%emt 0:00:21]} 18. Re4 {[%emt 0:12:37]} (18. Bxf4 $14 Qxf4 19. Kg1) 18... h6 {[%emt 0:18:54]} 19. Bxf4 {[%emt 0:06:42]} Nxf4 {[%emt 0:00:07]} 20. Qg4 {[%emt 0:04:56]} (20. Qe5 $11 {keeps the balance.} Qxe5 21. Rxe5) 20... e5 $17 {[%emt 0:04:12][%cal Be6e5,Be5f4][%mdl 32]} 21. Nf5 {[%emt 0:00:53]} (21. Qf3 $17) 21... g6 $1 $19 {[%emt 0:05:19]} 22. Nxh6+ {[%emt 0:00:37][%cal Bf5h6,Bh6g4,Bg4f6][%mdl 32] [#]} Kg7 $1 {[%emt 0:01:03]} 23. Qg5 {[%emt 0:00:06]} f6 {[%emt 0:02:53][%cal Bf7f6,Bf6f5][%mdl 32]} 24. Qg3 {[%emt 0:00:03][%cal Oe4f4]} ({Not} 24. Qh4 $2 Rh8 25. Rxf4 exf4 $19) 24... f5 {[%emt 0:00:25]} ({Much less strong is} 24... Kxh6 25. Rxf4 f5 26. Rh4+ Kg7 27. Qg5 $18) 25. Rxf4 {[%emt 0:12:28]} exf4 {[%emt 0:00:06]} 26. Qg5 {[%emt 0:00:00][%cal Oh6g4] [#] Black must now prevent Ng4!} Rae8 $4 {[%emt 0:03:12][%mdl 8192]} (26... Qd8 $1 $19 {[%cal Rd8g5]} 27. Qxf4 Qe7) 27. Ng4 $1 $40 {[%emt 0:01:03][%mdl 128] Strongly threatening Qh6+. Black is in trouble. White now steadily converts the win.} Be6 $2 {[%emt 0:12:17]} (27... fxg4 $2 {gets mated.} 28. Qxg6+ Kh8 29. Qh7#) (27... Re2 28. Rd1 Be6) 28. Qh6+ {[%emt 0:06:35][%mdl 64] Deflection} Kg8 {[%emt 0:00:09]} 29. Qxg6+ {[%emt 0:00:04]} Qg7 {[%emt 0:01:20] [#]} 30. Nf6+ $1 {[%emt 0:00:06][%mdl 576] Deflection} Rxf6 {[%emt 0:00:15]} 31. Qxe8+ {[%emt 0:00:01]} Qf8 {[%emt 0:00:41]} 32. Qh5 {[%emt 0:00:31]} Bd5 {[%emt 0:02:45]} 33. Rd1 {[%emt 0:00:37]} Bc6 {[%emt 0:00:37]} 34. Qg5+ {[%emt 0:00:05]} Kh7 {[%emt 0:01:10]} 35. Qxf4 {[%emt 0:00:05]} Qf7 {[%emt 0:00:41]} 36. f3 {[%emt 0:00:16]} Qe6 {[%emt 0:00:46]} 37. Rd8 {[%emt 0:00:25] Qh4+ would be deadly.} Bd5 {[%emt 0:01:35]} 38. a3 {[%emt 0:01:08]} Kg7 {[%emt 0:00:50]} 39. Bd3 {[%emt 0:01:04]} b5 {[%emt 0:00:49]} 40. Kh2 {[%emt 0:00:26]} Bc6 {[%emt 0:00:53]} 41. Qc7+ {[%emt 0:00:32]} Kg6 {[%emt 0:01:09]} 42. Qg3+ {[%emt 0:00:18]} Kh7 {[%emt 0:00:09]} 43. Qh4+ {[%emt 0:00:08]} Kg6 {[%emt 0:00:23]} 44. f4 {[%emt 0:01:30]} (44. Rh8 $142 Qd6+ 45. f4 Kf7 46. Qh7+ Ke6 47. Qg8+ Rf7 48. Rh6+ Ke7 49. Rxd6) 44... Qe3 {[%emt 0:01:19]} 45. Bb1 {[%emt 0:01:21] An entertaining game by Hommadov.   Weighted Error Value: White=0.18 (very precise) /Black=0.38} (45. Bc2 $142 Be8 46. Bxf5+ Kg7 47. Qg5+ Kf7 48. Rb8 Rb6 49. Bc2 Rxb8 50. Bb3+ Qe6 51. Bxe6+ Kxe6 52. Qe5+ Kf7 53. Qxb8) 1-0

[Event "Western Asian Juniors Chess-ch 2023"]
[Site "Colombo"]
[Date "2023.12.02"]
[Round "5.3"]
[White "Thilakarathne, G M H"]
[Black "Orozbaev, Eldiar"]
[Result "0-1"]
[ECO "D25"]
[WhiteElo "2389"]
[BlackElo "2278"]
[Annotator "RC"]
[PlyCount "118"]
[EventDate "2023.11.30"]
[EventCountry "SRI"]
[SourceTitle "playchess.com"]
[Source "ChessBase"]
[SourceQuality "1"]
[TimeControl "5400+30"]

1. d4 {[%emt 1:31:00]} d5 {[%emt 0:01:03]} 2. Nf3 {[%emt 0:00:00]} Nf6 {[%emt 0:00:06]} 3. c4 {[%emt 0:00:00]} dxc4 {[%emt 0:00:04]} 4. e3 {[%emt 0:00:00]} a6 {[%emt 0:00:03]} 5. Bxc4 {[%emt 0:00:00]} b5 {[%emt 0:00:04]} 6. Be2 {[%emt 0:00:00]} Bb7 {[%emt 0:00:05]} 7. O-O {[%emt 0:00:00]} e6 {[%emt 0:00:03]} 8. a4 {[%emt 0:00:00]} b4 {[%emt 0:00:05]} 9. a5 {[%emt 0:00:00]} Nbd7 {[%emt 0:05:53]} 10. Qa4 {[%emt 0:00:00]} c5 {[%emt 0:04:48]} 11. Nbd2 {[%emt 0:00:00]} Qc7 {[%emt 0:00:25]} 12. Ne5 {[%emt 0:00:00]} Be7 {[%emt 0:03:24]} 13. Bf3 {[%emt 0:00:00]} cxd4 {[%emt 0:02:04]} 14. exd4 {[%emt 0:00:00]} Rc8 {[%emt 0:00:42]} 15. Bxb7 {[%emt 0:00:00]} Qxb7 {[%emt 0:00:12]} 16. Ndf3 {[%emt 0:00:00]} O-O {[%emt 1:19:29]} 17. Bf4 {[%emt 0:00:00]} Nxe5 {[%emt 0:00:00]} 18. Bxe5 {[%emt 0:00:00]} Nd5 {[%emt 0:00:00]} 19. Rac1 {[%emt 0:00:00]} Rxc1 {[%emt 0:00:00]} 20. Rxc1 {[%emt 0:00:00]} Rc8 {[%emt 0:00:00]} 21. Qd1 {[%emt 0:00:00]} Bd8 {[%emt 0:00:00]} 22. Rc5 {[%emt 0:00:00]} Be7 {[%emt 0:00:00]} 23. Rc2 {[%emt 0:00:00]} b3 {[%emt 0:00:00]} 24. Rc1 {[%emt 0:00:00]} Bb4 {[%emt 0:00:00]} 25. h4 {[%emt 0:00:00]} f6 {[%emt 0:00:00]} 26. Bg3 {[%emt 0:00:00]} Rxc1 {[%emt 0:00:00]} 27. Qxc1 {[%emt 0:00:00]} Bxa5 {[%emt 0:00:00]} 28. Bd6 {[%emt 0:00:00]} Kf7 {[%emt 0:00:00]} 29. h5 {[%emt 0:00:00]} Bc7 {[%emt 0:00:00]} 30. Bxc7 {[%emt 0:01:31]} Qxc7 {[%emt 0:00:00]} 31. Qxc7+ {[%emt 0:00:16]} Nxc7 {[%emt 0:00:00]} 32. Nd2 {[%emt 0:00:09]} Ke7 {[%emt 0:00:00]} 33. Kf1 {[%emt 0:00:58]} Kd6 {[%emt 0:00:00]} 34. Ke2 {[%emt 0:00:29]} Nd5 {[%emt 0:00:00]} 35. g3 {[%emt 0:00:48]} Nb6 {[%emt 0:00:00]} 36. Kd3 {[%emt 0:06:10]} Na4 {[%emt 0:00:00]} 37. Nc4+ {[%emt 0:00:11]} Kc6 {[%emt 0:00:00]} 38. g4 {[%emt 0:00:41]} Kb5 {[%emt 0:00:00]} 39. f4 {[%emt 0:00:24]} Kb4 {[%emt 0:00:00]} 40. g5 {[%emt 0:04:31]} f5 {[%emt 0:00:00]} 41. g6 {[%emt 0:00:19]} h6 {[%emt 0:00:00]} 42. d5 {[%emt 0:04:03]} exd5 {[%emt 0:00:00]} 43. Ne3 {[%emt 0:00:00]} Nxb2+ {[%emt 0:00:00]} 44. Kd4 {[%emt 0:00:00]} Na4 {[%emt 0:00:00]} 45. Nxd5+ {[%emt 0:00:00]} Ka3 {[%emt 0:00:00]} 46. Ne3 {[%emt 0:00:13]} b2 {[%emt 0:00:00]} 47. Nc4+ {[%emt 0:00:10]} Kb3 {[%emt 0:00:00]} 48. Nxb2 {[%emt 0:00:10]} Nxb2 {[%emt 0:00:00]} 49. Ke5 {[%emt 0:00:18]} a5 {[%emt 0:00:00]} 50. Ke6 {[%emt 0:00:19]} Nd3 {[%emt 0:00:00]} 51. Kf7 {[%emt 0:00:01]} Nxf4 {[%emt 0:00:00]} 52. Kxg7 {[%emt 0:00:04]} a4 {[%emt 0:00:00]} 53. Kxh6 {[%emt 0:00:28]} Ne6 {[%emt 0:00:00]} 54. Kh7 {[%emt 0:00:24]} a3 {[%emt 0:00:00]} 55. h6 {[%emt 0:01:20]} Nf8+ {[%emt 0:00:00]} 56. Kg7 {[%emt 0:02:40]} Nxg6 {[%emt 0:00:00]} 57. Kxg6 {[%emt 0:00:05]} a2 {[%emt 0:00:00]} 58. Kxf5 {[%emt 0:00:12]} a1=Q {[%emt 0:00:00]} 59. Kg6 {[%emt 0:00:06]} Qh8 {[%emt 0:00:00]} 0-1

[Event "Western Asian Juniors Chess-ch 2023"]
[Site "Colombo"]
[Date "2023.12.02"]
[Round "5.4"]
[White "Mazhkenov, Alisher"]
[Black "Raahul V S"]
[Result "1-0"]
[ECO "C14"]
[WhiteElo "2105"]
[BlackElo "2350"]
[Annotator "RC"]
[PlyCount "139"]
[EventDate "2023.11.30"]
[EventCountry "SRI"]
[SourceTitle "playchess.com"]
[Source "ChessBase"]
[SourceQuality "1"]
[TimeControl "5400+30"]

1. e4 {[%emt 0:00:03]} e6 {[%emt 0:03:04]} 2. d4 {[%emt 0:00:29]} d5 {[%emt 0:00:06]} 3. Nc3 {[%emt 0:00:33]} Nf6 {[%emt 0:00:35]} 4. Bg5 {[%emt 0:00:24]} Be7 {[%emt 0:00:16]} 5. e5 {[%emt 0:00:09]} Nfd7 {[%emt 0:00:15]} 6. Bxe7 {[%emt 0:00:27]} Qxe7 {[%emt 0:00:07]} 7. f4 {[%emt 0:00:05]} a6 {[%emt 0:00:04]} 8. Qg4 {[%emt 0:00:08]} O-O {[%emt 0:02:53]} 9. Nf3 {[%emt 0:07:29]} c5 {[%emt 0:00:25]} 10. Bd3 {[%emt 0:00:37]} f5 {[%emt 0:04:43]} 11. Qg5 {[%emt 0:15:13]} Qxg5 {[%emt 0:04:28]} 12. Nxg5 {[%emt 0:00:52]} cxd4 {[%emt 0:00:16]} 13. Ne2 {[%emt 0:01:09]} Nc5 {[%emt 0:00:28]} 14. Nxd4 {[%emt 0:06:58]} Nc6 {[%emt 0:00:06]} 15. Ngf3 {[%emt 0:00:53]} Bd7 {[%emt 0:00:47]} 16. Ke2 {[%emt 0:05:49]} Be8 {[%emt 0:00:55]} 17. Ke3 {[%emt 0:01:03]} Rc8 {[%emt 0:12:09]} 18. Rhg1 {[%emt 0:08:36]} Bh5 {[%emt 0:09:56]} 19. Nxc6 {[%emt 0:04:24]} Rxc6 {[%emt 0:05:56]} 20. Nd4 {[%emt 0:00:21]} Rc7 {[%emt 0:08:05]} 21. b4 {[%emt 0:02:20]} Nxd3 {[%emt 0:00:10]} 22. cxd3 {[%emt 0:03:51]} Kf7 {[%emt 0:00:04]} 23. b5 {[%emt 0:12:02]} axb5 {[%emt 0:07:33]} 24. Nxb5 {[%emt 0:03:38]} Rc6 {[%emt 0:00:06]} 25. Nd4 {[%emt 0:01:43]} Rc7 {[%emt 0:00:07]} 26. Rgc1 {[%emt 0:02:04]} Rfc8 {[%emt 0:01:04]} 27. Rxc7+ {[%emt 0:01:02]} Rxc7 {[%emt 0:00:02]} 28. Rb1 {[%emt 0:00:32]} Ke7 {[%emt 0:00:41]} 29. Rb6 {[%emt 0:02:06]} Bf7 {[%emt 0:00:29]} 30. Nb5 {[%emt 0:00:20]} Rc2 {[%emt 0:00:06]} 31. Rxb7+ {[%emt 0:04:01]} Kf8 {[%emt 0:00:04]} 32. Nd6 {[%emt 0:03:02]} Bh5 {[%emt 0:00:05]} 33. a4 {[%emt 0:00:59]} Rxg2 {[%emt 0:00:11]} 34. a5 {[%emt 0:01:49]} Ra2 {[%emt 0:00:09]} 35. Ra7 {[%emt 0:01:33]} Ra4 {[%emt 0:00:34]} 36. Nb5 {[%emt 0:01:19]} g5 {[%emt 0:00:07]} 37. d4 {[%emt 0:01:52]} Be8 {[%emt 0:02:46]} 38. Nd6 {[%emt 0:02:01]} Ra3+ {[%emt 0:00:52]} 39. Kd2 {[%emt 0:00:14]} Bg6 {[%emt 0:00:23]} 40. Nb5 {[%emt 0:04:11]} Ra4 {[%emt 0:00:01]} 41. a6 {[%emt 0:02:10]} gxf4 {[%emt 0:00:39]} 42. Ra8+ {[%emt 0:00:20]} Kg7 {[%emt 0:01:11]} 43. a7 {[%emt 0:00:12]} Ra2+ {[%emt 0:00:04]} 44. Ke1 {[%emt 0:00:28]} f3 {[%emt 0:00:24]} 45. Rc8 {[%emt 0:00:56]} f4 {[%emt 0:01:53]} 46. Rc3 {[%emt 0:00:21]} Be4 {[%emt 0:11:11]} 47. Ra3 {[%emt 0:00:08]} Re2+ {[%emt 0:00:38]} 48. Kf1 {[%emt 0:00:22]} Rxh2 {[%emt 0:00:29]} 49. Rxf3 {[%emt 0:02:53]} Bxf3 {[%emt 0:01:40]} 50. a8=Q {[%emt 0:00:04]} Be2+ {[%emt 0:00:07]} 51. Ke1 {[%emt 0:01:03]} f3 {[%emt 0:01:54]} 52. Qd8 {[%emt 0:00:14]} Bxb5 {[%emt 0:01:44]} 53. Qf6+ {[%emt 0:00:16]} Kg8 {[%emt 0:00:05]} 54. Qxe6+ {[%emt 0:00:17]} Kf8 {[%emt 0:00:39]} 55. Qd6+ {[%emt 0:01:02]} Kg7 {[%emt 0:00:25]} 56. Qf6+ {[%emt 0:00:35]} Kg8 {[%emt 0:00:04]} 57. Qg5+ {[%emt 0:00:29]} Kh8 {[%emt 0:00:09]} 58. Qf6+ {[%emt 0:00:31]} Kg8 {[%emt 0:00:02]} 59. Qe6+ {[%emt 0:00:11]} Kf8 {[%emt 0:00:11]} 60. Qc8+ {[%emt 0:00:49]} Be8 {[%emt 0:00:42]} 61. Qc5+ {[%emt 0:00:16]} Kg7 {[%emt 0:00:12]} 62. Qxd5 {[%emt 0:00:30]} Bh5 {[%emt 0:00:26]} 63. Qe6 {[%emt 0:00:50]} Rh1+ {[%emt 0:01:36]} 64. Kf2 {[%emt 0:00:03]} Rh2+ {[%emt 0:00:05]} 65. Kg1 {[%emt 0:00:30]} f2+ {[%emt 0:01:05]} 66. Kf1 {[%emt 0:00:22]} Bg6 {[%emt 0:00:53]} 67. Qf6+ {[%emt 0:00:14]} Kg8 {[%emt 0:00:05]} 68. Qf3 {[%emt 0:00:16]} Rh4 {[%emt 0:01:12]} 69. e6 {[%emt 0:00:48]} Re4 {[%emt 0:00:43]} 70. Qf6 {[%emt 0:01:09]} 1-0

[Event "Western Asian Juniors Chess-ch 2023"]
[Site "Colombo"]
[Date "2023.12.02"]
[Round "5.5"]
[White "Dissanayake, R K T"]
[Black "Manon, Reja Neer"]
[Result "0-1"]
[ECO "C63"]
[WhiteElo "1865"]
[BlackElo "2207"]
[Annotator "RC"]
[PlyCount "64"]
[EventDate "2023.11.30"]
[EventCountry "SRI"]
[SourceTitle "playchess.com"]
[Source "ChessBase"]
[SourceQuality "1"]
[TimeControl "5400+30"]

1. e4 {[%emt 0:00:02]} e5 {[%emt 0:00:06]} 2. Nf3 {[%emt 0:00:06]} Nc6 {[%emt 0:00:05]} 3. Bb5 {[%emt 0:00:05]} f5 {[%emt 0:00:08]} 4. d3 {[%emt 0:02:34]} fxe4 {[%emt 0:00:11]} 5. dxe4 {[%emt 0:00:11]} Nf6 {[%emt 0:00:02]} 6. Bg5 {[%emt 0:09:29]} d6 {[%emt 0:00:55]} 7. Nc3 {[%emt 0:00:48]} Be7 {[%emt 0:00:40]} 8. h3 {[%emt 0:02:05]} Be6 {[%emt 0:10:21]} 9. Qd3 {[%emt 0:08:25]} a6 {[%emt 0:14:23]} 10. Ba4 {[%emt 0:00:48]} Nd7 {[%emt 0:01:49]} 11. Be3 {[%emt 0:03:10]} Na5 {[%emt 0:02:03]} 12. Nd5 {[%emt 0:04:35]} b5 {[%emt 0:01:23]} 13. Bb3 {[%emt 0:01:39]} Nxb3 {[%emt 0:01:34]} 14. axb3 {[%emt 0:00:27]} O-O {[%emt 0:02:56]} 15. h4 {[%emt 0:11:25]} c6 {[%emt 0:07:59]} 16. Nxe7+ {[%emt 0:00:50]} Qxe7 {[%emt 0:00:03]} 17. Ng5 {[%emt 0:07:14]} Nf6 {[%emt 0:01:18]} 18. Rd1 {[%emt 0:03:19]} Rad8 {[%emt 0:03:30]} 19. Rd2 {[%emt 0:06:11]} Bc8 {[%emt 0:09:25]} 20. b4 {[%emt 0:05:20]} h6 {[%emt 0:03:25]} 21. Qb3+ {[%emt 0:00:42]} Kh8 {[%emt 0:00:16]} 22. f3 {[%emt 0:01:45]} Nh5 {[%emt 0:03:38]} 23. g4 {[%emt 0:04:18]} Nf4 {[%emt 0:01:02]} 24. Bxf4 {[%emt 0:02:24]} Rxf4 {[%emt 0:09:32]} 25. Ke2 {[%emt 0:06:15]} d5 {[%emt 0:03:51]} 26. Nh3 {[%emt 0:02:12]} Qxh4 {[%emt 0:03:01]} 27. exd5 {[%emt 0:03:32]} Rxf3 {[%emt 0:04:02]} 28. Kxf3 {[%emt 0:00:33]} Qxg4+ {[%emt 0:00:11]} 29. Ke3 {[%emt 0:02:31]} Qg3+ {[%emt 0:00:08]} 30. Ke2 {[%emt 0:03:46]} Bg4+ {[%emt 0:00:03]} 31. Kf1 {[%emt 0:00:12]} Bxh3+ {[%emt 0:00:09]} 32. Rxh3 {[%emt 0:00:24]} Rf8+ {[%emt 0:00:02]} 0-1

[Event "Western Asian Juniors Chess-ch 2023"]
[Site "Colombo"]
[Date "2023.12.02"]
[Round "5.6"]
[White "Halynyazow, Vepaly"]
[Black "Ovitigala, Chenitha Mithvidu"]
[Result "1-0"]
[ECO "D58"]
[WhiteElo "2020"]
[BlackElo "1710"]
[Annotator "NA RC"]
[PlyCount "73"]
[EventDate "2023.11.30"]
[EventCountry "SRI"]
[SourceTitle "playchess.com"]
[Source "ChessBase"]
[SourceQuality "1"]
[TimeControl "5400+30"]

1. d4 {[%emt 0:00:02]} Nf6 {[%emt 1:31:00]} 2. c4 {[%emt 0:00:08]} e6 {[%emt 0:00:00]} 3. Nf3 {[%emt 0:00:09]} d5 {[%emt 0:00:00]} 4. Nc3 {[%emt 0:00:11]} Be7 {[%emt 0:00:00]} 5. Bg5 {[%emt 1:32:30]} h6 {[%emt 0:00:00]} 6. Bh4 {[%emt 0:00:00]} O-O {[%emt 0:00:00]} 7. e3 {[%emt 0:00:00]} b6 {[%emt 0:00:00]} 8. cxd5 {[%emt 0:00:00]} exd5 {[%emt 0:00:00]} 9. Bd3 {[%emt 0:00:00]} Bb7 {[%emt 0:00:00]} 10. g4 {[%emt 0:00:00]} Ne4 {[%emt 0:00:00]} 11. Bxe7 {[%emt 0:00:00]} Qxe7 {[%emt 0:00:00]} 12. Qc2 {[%emt 0:00:00]} Nd7 {[%emt 0:00:00]} 13. O-O-O {[%emt 0:00:00]} c5 {[%emt 0:00:00]} 14. g5 {[%emt 0:00:00]} h5 {[%emt 0:00:00]} 15. Kb1 {[%emt 0:00:00]} Rac8 {[%emt 0:00:00]} 16. Rhe1 {[%emt 0:00:00]} a6 {[%emt 0:00:00]} 17. Bxe4 {[%emt 0:00:00]} dxe4 {[%emt 0:00:00]} 18. Nd2 {[%emt 0:00:00]} b5 {[%emt 0:00:00]} 19. d5 {[%emt 0:00:00]} b4 {[%emt 0:00:00]} 20. Ncxe4 {[%emt 0:00:00]} Bxd5 {[%emt 0:00:00]} 21. Ng3 {[%emt 0:00:00]} g6 {[%emt 0:00:00]} 22. e4 {[%emt 0:00:00]} Be6 {[%emt 0:06:44]} 23. f4 {[%emt 0:00:00]} h4 {[%emt 0:02:00]} 24. Nf5 {[%emt 0:00:00]} gxf5 {[%emt 0:00:30]} 25. exf5 {[%emt 0:00:00]} b3 {[%emt 0:02:09]} 26. axb3 {[%emt 0:00:00]} Rfd8 {[%emt 0:00:32]} 27. fxe6 {[%emt 0:00:00]} fxe6 {[%emt 0:00:10]} 28. Qg6+ {[%emt 0:00:00]} Kh8 {[%emt 0:00:32]} 29. Rxe6 {[%emt 0:00:00]} Qh7 {[%emt 0:00:47]} 30. Qxh7+ {[%emt 0:00:00]} Kxh7 {[%emt 0:00:14]} 31. Ne4 {[%emt 0:00:00]} Nf8 {[%emt 0:00:28]} 32. Rxd8 {[%emt 0:00:00]} Rxd8 {[%emt 0:00:07]} 33. Rxa6 {[%emt 0:00:00]} Rd4 {[%emt 0:00:24]} 34. Nf6+ {[%emt 0:00:00]} Kg7 {[%emt 0:00:30]} 35. f5 {[%emt 0:00:00]} Rd8 {[%emt 0:00:30]} 36. Ra7+ {[%emt 0:00:00]} Kh8 {[%emt 0:00:30]} 37. g6 {[%emt 0:00:00]} 1-0